[Event "45th FIDE Womens Olympiad 2024"]
[Site "Budapest"]
[Date "2024.09.15"]
[Round "5"]
[White "Pride, Chika"]
[Black "Nosimilo, Mkhonto"]
[Result "1/2-1/2"]
[ECO "C54"]
[WhiteElo "1578"]
[BlackElo "1561"]
[PlyCount "44"]
[EventDate "2024.09.05"]
[EventType "team-tourn"]
[EventCountry "HUN"]
[WhiteTeam "Bahamas"]
[BlackTeam "Eswatini"]
[WhiteTeamCountry "BAH"]
[TimeControl "40/5400+30:1800+30"]

1. e4 e5 2. Nf3 Nc6 3. Bc4 Bc5 4. d3 Nf6 5. c3 d6 6. O-O O-O 7. Nbd2 a6 8. a4 h6 9. Re1 Re8 10. Nf1 Ng4 11. Re2 Be6 12. Bxe6 Rxe6 13. d4 exd4 14. cxd4 Ba7 15. d5 Rxe4 16. Rxe4 Nxf2 17. Qe2 Nh3+ 18. Kh1 Nf2+ 19. Kg1 Nh3+ 20. Kh1 Nf2+ 21. Kg1 Nh3+ 22. Kh1 Nf2+ 1/2-1/2

[Event "45th FIDE Womens Olympiad 2024"]
[Site "Budapest"]
[Date "2024.09.15"]
[Round "5.1"]
[White "Assaubayeva, Bibisara"]
[Black "Dronavalli, Harika"]
[Result "1-0"]
[ECO "C42"]
[WhiteElo "2482"]
[BlackElo "2502"]
[Annotator "RC"]
[PlyCount "101"]
[EventDate "2024.09.05"]
[EventType "team-tourn"]
[EventCountry "HUN"]
[SourceTitle "playchess.com"]
[Source "ChessBase"]
[SourceQuality "1"]
[WhiteTeam "Kazakhstan"]
[BlackTeam "India"]
[WhiteTeamCountry "KAZ"]
[BlackTeamCountry "IND"]
[TimeControl "40/5400+30:1800+30"]

1. e4 {[%emt 0:00:03]} e5 {[%emt 0:00:52]} 2. Nf3 {[%emt 0:00:05]} Nf6 {[%emt 0:00:14]} 3. Nxe5 {[%emt 0:00:19]} Nxe4 {[%emt 0:01:39]} 4. Qe2 {[%emt 0:03:20]} Qe7 {[%emt 0:00:56]} 5. Qxe4 {[%emt 0:01:26]} d6 {[%emt 0:00:16]} 6. d4 {[%emt 0:00:51]} dxe5 {[%emt 0:00:22]} 7. dxe5 {[%emt 0:01:37]} Nc6 {[%emt 0:00:12]} 8. Bf4 {[%emt 0:03:03]} g5 {[%emt 0:03:21]} 9. Bd2 {[%emt 0:10:27]} f5 {[%emt 0:15:41]} 10. Qe2 {[%emt 0:06:35]} Bg7 {[%emt 0:02:48]} 11. Nc3 {[%emt 0:03:16]} Be6 {[%emt 0:04:18]} 12. Qh5+ {[%emt 0:09:16]} Bf7 {[%emt 0:00:20]} 13. Qxg5 {[%emt 0:00:09]} Qxe5+ {[%emt 0:00:42]} 14. Qe3 {[%emt 0:01:31]} O-O-O {[%emt 0:07:06]} 15. Qxe5 {[%emt 0:00:34]} Nxe5 {[%emt 0:00:36]} 16. f4 {[%emt 0:22:44]} Ng4 {[%emt 0:14:23]} 17. Bd3 {[%emt 0:00:35]} Rhe8+ {[%emt 0:00:13]} 18. Ne2 {[%emt 0:02:28]} Bxb2 {[%emt 0:06:46]} 19. Rb1 {[%emt 0:02:28]} Bd4 {[%emt 0:02:21]} 20. Kf1 {[%emt 0:06:48]} Ne3+ {[%emt 0:10:53]} 21. Bxe3 {[%emt 0:00:11]} Bxe3 {[%emt 0:00:04]} 22. a4 {[%emt 0:05:56]} Be6 {[%emt 0:12:00]} 23. h4 {[%emt 0:01:27]} Bb6 {[%emt 0:06:12]} 24. Rh3 {[%emt 0:01:36]} c5 {[%emt 0:00:34]} 25. Re3 {[%emt 0:02:45]} Kc7 {[%emt 0:03:31]} 26. Bb5 {[%emt 0:04:07]} Bd7 {[%emt 0:00:12]} 27. Rxe8 {[%emt 0:01:35]} Bxe8 {[%emt 0:00:05]} 28. Bxe8 {[%emt 0:03:10]} Rxe8 {[%emt 0:00:04]} 29. Ng3 {[%emt 0:00:30]} Kc6 {[%emt 0:01:12]} 30. Nxf5 {[%emt 0:01:30]} Re4 {[%emt 0:00:13]} 31. g3 {[%emt 0:00:50]} Rxa4 {[%emt 0:00:28]} 32. Ne7+ {[%emt 0:01:25]} Kd6 {[%emt 0:04:22]} 33. Nc8+ {[%emt 0:00:01]} Kd5 {[%emt 0:00:29]} 34. Nxb6+ {[%emt 0:01:32]} axb6 {[%emt 0:00:04]} 35. Rxb6 {[%emt 0:00:41]} Ra2 {[%emt 0:00:05]} 36. f5 {[%emt 0:00:56]} Ra3 {[%emt 0:02:18]} 37. Kf2 {[%emt 0:01:11]} Ke4 {[%emt 0:00:17]} 38. f6 {[%emt 0:00:33]} Rf3+ {[%emt 0:00:06]} 39. Kg2 {[%emt 0:00:41]} h5 {[%emt 0:00:57]} 40. Re6+ {[%emt 0:01:13]} Kd5 {[%emt 0:00:19]} 41. Kxf3 {[%emt 0:11:21]} Kxe6 {[%emt 0:00:08]} 42. c4 {[%emt 0:01:01]} Kxf6 {[%emt 0:00:23]} 43. g4 {[%emt 0:00:29]} hxg4+ {[%emt 0:00:04]} 44. Kxg4 {[%emt 0:00:04]} Kg6 {[%emt 0:01:50]} 45. h5+ {[%emt 0:02:57]} Kh6 {[%emt 0:00:05]} 46. Kh4 {[%emt 0:00:10]} Kg7 {[%emt 0:07:19]} 47. Kg5 {[%emt 0:00:10]} Kf7 {[%emt 0:01:39]} 48. h6 {[%emt 0:00:56]} Kg8 {[%emt 0:00:18]} 49. Kg6 {[%emt 0:00:10]} Kh8 {[%emt 0:00:09]} 50. h7 {[%emt 0:00:11]} b6 {[%emt 0:00:09]} 51. Kh6 {[%emt 0:00:06]} 1-0

[Event "45th FIDE Womens Olympiad 2024"]
[Site "Budapest"]
[Date "2024.09.15"]
[Round "5.1"]
[White "Marcos, Taqesyah"]
[Black "Lyons, Kieran"]
[Result "0-1"]
[ECO "A84"]
[WhiteElo "1679"]
[BlackElo "1818"]
[PlyCount "82"]
[EventDate "2024.09.05"]
[EventType "team-tourn"]
[EventCountry "HUN"]
[WhiteTeam "Netherlands Antilles"]
[BlackTeam "Fiji"]
[WhiteTeamCountry "AHO"]
[BlackTeamCountry "FIJ"]
[TimeControl "40/5400+30:1800+30"]

1. d4 f5 2. e3 Nf6 3. Nf3 e6 4. c4 b6 5. Be2 Bb7 6. Nbd2 Bb4 7. a3 Bxd2+ 8. Bxd2 O-O 9. O-O d6 10. b4 Ne4 11. Qb3 Qf6 12. Rac1 Qg6 13. Bc3 c5 14. d5 e5 15. Nd2 Bc8 16. f4 exf4 17. exf4 Nd7 18. Qd1 Ndf6 19. Nf3 Qh6 20. Nd2 g5 21. Bxf6 Rxf6 22. Nxe4 fxe4 23. Bg4 Qh4 24. Bxc8 Rxc8 25. fxg5 Rxf1+ 26. Qxf1 Qxg5 27. Re1 Re8 28. Qe2 e3 29. h3 Kg7 30. Rf1 Rf8 31. Rxf8 Kxf8 32. b5 Kf7 33. Qf3+ Kg7 34. Qe2 Kg6 35. Qd3+ Kg7 36. Qe2 h5 37. Qb2+ Kg6 38. Qe2 Kf5 39. Qd3+ Ke5 40. Qe2 Ke4 41. Qf3+ Kd3 {0-} 0-1

[Event "45th FIDE Womens Olympiad 2024"]
[Site "Budapest"]
[Date "2024.09.15"]
[Round "5.2"]
[White "Vaishali, Rameshbabu"]
[Black "Kamalidenova, Meruert"]
[Result "1-0"]
[ECO "B90"]
[WhiteElo "2498"]
[BlackElo "2352"]
[Annotator "TA"]
[PlyCount "117"]
[EventDate "2024.09.05"]
[EventType "team-tourn"]
[EventCountry "HUN"]
[SourceTitle "playchess.com"]
[Source "ChessBase"]
[SourceQuality "1"]
[WhiteTeam "India"]
[BlackTeam "Kazakhstan"]
[WhiteTeamCountry "IND"]
[BlackTeamCountry "KAZ"]
[TimeControl "40/5400+30:1800+30"]

{[%evp 26,117,20,24,33,25,18,5,13,15,0,0,25,0,67,19,77,73,68,29,123,118,159,161,163,130,187,169,220,188,185,185,181,188,275,258,272,280,265,250,274,264,278,171,177,172,171,171,175,171,165,160,167,164,164,164,183,168,163,162,159,145,145,145,154,145,260,262,269,269,250,250,400,385,542,527,478,478,569,659,1318,1196,1808,1644,1882,1813,29982,29983,29983,29984,29986,29987,29987,29988]} 1. e4 {[%emt 0:00:11]} c5 {[%emt 0:00:11]} 2. Nf3 {[%emt 0:00:11]} d6 {[%emt 0:00:08]} 3. d4 {[%emt 0:00:10]} cxd4 {[%emt 0:00:05]} 4. Nxd4 {[%emt 0:00:04]} Nf6 {[%emt 0:00:09]} 5. Nc3 {[%emt 0:00:03]} a6 {[%emt 0:00:05]} 6. Qd3 {[%emt 0:01:02] B90: Sicilian Najdorf: Unusual White 6th moves, 6 Be3 Ng4 and 6 Be3 e5.} Nbd7 {[%emt 0:00:35]} 7. Be2 {[%emt 0:00:46]} b5 {[%emt 0:00:23]} 8. Nd5 {[%emt 0:00:37]} Bb7 {[%emt 0:00:36]} 9. a4 {[%emt 0:01:05]} bxa4 {[%emt 0:00:29]} 10. Nxf6+ {[%emt 0:10:58]} Nxf6 {[%emt 0:00:21]} 11. f3 {[%emt 0:01:00]} g6 {[%emt 0:00:33]} 12. Qa3 $146 {[%emt 0:00:53]} ({Predecessor:} 12. Rxa4 Nd7 13. Nb3 Ne5 14. Qe3 Bg7 15. Bd2 Qd7 16. Ra3 O-O 17. Bc3 Rfc8 18. O-O {1-0 Sindarov,J (2654)-Mishra,A (2559) Tata Steel-B 85th 2023 (9)}) 12... Bg7 {[%emt 0:03:39]} 13. Qxa4+ {[%emt 0:00:11]} Nd7 {[%emt 0:01:50]} 14. Be3 {[%emt 0:00:29]} O-O {[%emt 0:02:16]} 15. Qa5 {[%emt 0:00:13]} Qc8 {[%emt 0:04:02]} 16. c3 {[%emt 0:08:40]} Nc5 {[%emt 0:12:39]} 17. Ra3 {[%emt 0:13:00]} e5 {[%emt 0:04:56]} 18. Nb3 {[%emt 0:04:40]} Ne6 $1 {[%emt 0:01:01]} 19. O-O {[%emt 0:01:06]} f5 {[%emt 0:03:12]} (19... Nf4 $11 20. Re1 Nxe2+ 21. Rxe2 Rd8) 20. exf5 {[%emt 0:04:32]} (20. Nd2 $14) 20... gxf5 {[%emt 0:07:09]} (20... Rxf5 $11 {remains equal.} 21. Qb4 Rb8) 21. Rd1 $16 {[%emt 0:09:01]} d5 {[%emt 0:03:45]} 22. Qb6 {[%emt 0:05:02]} Rf7 {[%emt 0:14:25]} (22... Rb8 $11 23. Nc5 Bc6) 23. Na5 $1 $16 {[%emt 0:04:10]} (23. Nc5 Nxc5 24. Bxc5 Rf6 $14) 23... Bf8 {[%emt 0:01:09] [#]} 24. b4 $1 {[%emt 0:06:24]} Kh8 {[%emt 0:13:42]} 25. Bf1 {[%emt 0:14:59]} Bg7 {[%emt 0:04:29]} (25... Rb8 $16) 26. Bf2 {[%emt 0:04:36]} e4 {[%emt 0:02:26]} (26... Rb8 $142 27. Nxb7 Rfxb7 28. Bxa6 (28. Qxa6 d4 $16) 28... Rxb6 29. Bxc8 d4) 27. fxe4 {[%emt 0:02:22]} fxe4 {[%emt 0:01:15]} 28. Nxb7 {[%emt 0:01:40]} Rxb7 {[%emt 0:00:13]} 29. Qd6 {[%emt 0:00:25]} (29. Bxa6 Rxb6 30. Bxc8 Rxa3 $11) 29... d4 {[%emt 0:01:47]} (29... Nc7 {is a better defense.} 30. Bxa6 Rxa6 31. Rxa6 Nxa6) 30. Rxa6 $18 {[%emt 0:03:44]} e3 {[%emt 0:01:28]} 31. Bxe3 {[%emt 0:01:01]} ({Not} 31. Qxe6 exf2+ 32. Kxf2 Qxe6 33. Rxe6 (33. Rxa8+ Bf8 $11) 33... dxc3 $11) 31... dxe3 {[%emt 0:00:35]} 32. Rxa8 {[%emt 0:00:06]} ({Weaker is} 32. Qxe6 Qxe6 33. Rxe6 Bxc3 $16) 32... Qxa8 {[%emt 0:00:35]} 33. Qxe6 {[%emt 0:00:02]} Bxc3 {[%emt 0:04:18]} 34. Qxe3 {[%emt 0:00:08]} Qa7 {[%emt 0:00:17]} 35. Qxa7 {[%emt 0:00:42]} Rxa7 {[%emt 0:00:01]} 36. b5 {[%emt 0:00:11]} Kg7 {[%emt 0:00:31]} 37. Kf2 {[%emt 0:01:06]} Kf6 {[%emt 0:00:48]} 38. Bc4 {[%emt 0:00:53]} Be5 {[%emt 0:00:57]} 39. g3 {[%emt 0:01:13]} Rc7 {[%emt 0:01:05]} 40. Be2 {[%emt 0:00:35]} Rb7 {[%emt 0:03:27]} 41. Rc1 {[%emt 0:03:39]} Bd4+ {[%emt 0:00:57]} 42. Kf3 {[%emt 0:00:30]} Ke5 {[%emt 0:00:32]} 43. Rc6 {[%emt 0:03:57]} Rf7+ {[%emt 0:12:25]} 44. Kg4 {[%emt 0:00:03]} Bg1 {[%emt 0:00:31]} 45. Bc4 {[%emt 0:03:28]} Re7 {[%emt 0:04:31]} (45... Rf6 $16 {was worth a try.}) 46. h4 $18 {[%emt 0:08:09]} Rg7+ {[%emt 0:06:43]} 47. Kf3 {[%emt 0:00:16]} Rb7 {[%emt 0:00:28]} 48. g4 {[%emt 0:01:25]} Bb6 {[%emt 0:00:49]} (48... Rb6 {was called for.} 49. g5 Rb7) 49. g5 $18 {[%emt 0:00:51]} Kd4 {[%emt 0:00:20]} (49... Ba5 $142 50. Re6+ Kd4 51. Re4+ Kc3) 50. Kg4 $18 {[%emt 0:01:40]} Bc5 {[%emt 0:00:51]} 51. Be2 {[%emt 0:01:14]} Re7 {[%emt 0:01:26]} 52. Bf3 {[%emt 0:00:18]} Re8 {[%emt 0:07:17]} 53. b6 {[%emt 0:01:50]} Re3 {[%emt 0:02:20]} 54. b7 {[%emt 0:00:27]} Rb3 {[%emt 0:00:05]} 55. h5 {[%emt 0:02:40]} Rb4 {[%emt 0:01:20]} 56. Rxc5 {[%emt 0:01:53]} Kxc5+ {[%emt 0:00:07]} 57. Kg3 {[%emt 0:00:02]} Kd6 {[%emt 0:02:46]} 58. g6 {[%emt 0:00:09]} hxg6 {[%emt 0:00:27] [#]} 59. h6 $1 {[%emt 0:00:06]} 1-0

[Event "45th FIDE Womens Olympiad 2024"]
[Site "Budapest"]
[Date "2024.09.15"]
[Round "5.2"]
[White "Terubea, Cydel"]
[Black "Pourier, Dianthely"]
[Result "1/2-1/2"]
[ECO "B13"]
[WhiteElo "1681"]
[BlackElo "1548"]
[PlyCount "136"]
[EventDate "2024.09.05"]
[EventType "team-tourn"]
[EventCountry "HUN"]
[WhiteTeam "Fiji"]
[BlackTeam "Netherlands Antilles"]
[WhiteTeamCountry "FIJ"]
[BlackTeamCountry "AHO"]
[TimeControl "40/5400+30:1800+30"]

1. e4 c6 2. Nf3 d5 3. exd5 cxd5 4. d4 a6 5. c3 Nf6 6. Bf4 Bg4 7. Be2 e6 8. h3 Bxf3 9. Bxf3 Bd6 10. Qd2 Nc6 11. O-O Ne4 12. Qe3 Bxf4 13. Qxf4 Nd6 14. Re1 O-O 15. Nd2 Re8 16. Re2 b5 17. Rae1 Ra7 18. Bxd5 g5 19. Qf3 exd5 20. Qxd5 Rxe2 21. Rxe2 Rc7 22. Nf3 h6 23. Nh2 Ne7 24. Qf3 Nef5 25. Qh5 Re7 26. Rxe7 Qxe7 27. Ng4 Kh7 28. Ne5 Ng7 29. Qf3 Nge8 30. Qd3+ Kg8 31. Qf3 f6 32. Qd5+ Nf7 33. Qxf7+ Qxf7 34. Nxf7 Kxf7 35. f3 Ke6 36. Kf2 Nd6 37. b3 a5 38. g4 b4 39. c4 a4 40. Ke3 axb3 41. axb3 Nb7 42. Kd3 Kd6 43. Kd2 Nd8 44. Kd3 Ne6 45. Ke4 Nf4 46. Ke3 Nxh3 47. Ke4 Nf4 48. Ke3 h5 49. gxh5 Nxh5 50. Ke4 Ng3+ 51. Ke3 f5 52. Kd3 Nh5 53. Ke2 g4 54. fxg4 fxg4 55. Kf2 Nf4 56. Kg3 Ne2+ 57. Kxg4 Nxd4 58. Kf4 Nxb3 59. Ke3 Kc5 60. Kd3 Nc1+ 61. Kc2 Ne2 62. Kb3 Nd4+ 63. Ka2 b3+ 64. Ka3 Kxc4 65. Kb2 Ne2 66. Kb1 Kc3 67. Ka1 b2+ 68. Kb1 Nc1 1/2-1/2

[Event "45th FIDE Womens Olympiad 2024"]
[Site "Budapest"]
[Date "2024.09.15"]
[Round "5.3"]
[White "Balabayeva, Xeniya"]
[Black "Divya Deshmukh"]
[Result "1/2-1/2"]
[ECO "D02"]
[WhiteElo "2335"]
[BlackElo "2483"]
[Annotator "RC"]
[PlyCount "85"]
[EventDate "2024.09.05"]
[EventType "team-tourn"]
[EventCountry "HUN"]
[SourceTitle "playchess.com"]
[Source "ChessBase"]
[SourceQuality "1"]
[WhiteTeam "Kazakhstan"]
[BlackTeam "India"]
[WhiteTeamCountry "KAZ"]
[BlackTeamCountry "IND"]
[TimeControl "40/5400+30:1800+30"]

1. d4 {[%emt 0:00:02]} Nf6 {[%emt 0:00:50]} 2. Nf3 {[%emt 0:00:08]} d5 {[%emt 0:00:15]} 3. Bf4 {[%emt 0:00:13]} e6 {[%emt 0:00:07]} 4. e3 {[%emt 0:00:12]} c5 {[%emt 0:00:05]} 5. c3 {[%emt 0:01:06]} Nc6 {[%emt 0:00:05]} 6. Nbd2 {[%emt 0:03:25]} cxd4 {[%emt 0:00:11]} 7. exd4 {[%emt 0:00:23]} Nh5 {[%emt 0:00:05]} 8. Be3 {[%emt 0:01:01]} Bd6 {[%emt 0:00:08]} 9. h3 {[%emt 0:03:43]} O-O {[%emt 0:00:57]} 10. Bd3 {[%emt 0:11:09]} Nf4 {[%emt 0:00:33]} 11. Bxf4 {[%emt 0:00:05]} Bxf4 {[%emt 0:00:02]} 12. O-O {[%emt 0:00:09]} Bd7 {[%emt 0:01:29]} 13. Qc2 {[%emt 0:02:53]} g6 {[%emt 0:00:24]} 14. Rae1 {[%emt 0:03:27]} Rc8 {[%emt 0:05:18]} 15. Qb1 {[%emt 0:16:38]} Kg7 {[%emt 0:02:47]} 16. Re2 {[%emt 0:03:29]} a5 {[%emt 0:08:37]} 17. Rfe1 {[%emt 0:07:11]} a4 {[%emt 0:05:12]} 18. a3 {[%emt 0:00:24]} Qb6 {[%emt 0:08:57]} 19. g3 {[%emt 0:16:24]} Bd6 {[%emt 0:18:37]} 20. h4 {[%emt 0:02:56]} Ne7 {[%emt 0:02:00]} 21. h5 {[%emt 0:07:09]} Bb5 {[%emt 0:01:02]} 22. Nf1 {[%emt 0:02:28]} Ng8 {[%emt 0:00:49]} 23. Ng5 {[%emt 0:03:24]} Rce8 {[%emt 0:03:00]} 24. Nh2 {[%emt 0:04:34]} Bxd3 {[%emt 0:08:50]} 25. Qxd3 {[%emt 0:00:02]} Qd8 {[%emt 0:00:06]} 26. f4 {[%emt 0:03:12]} Nf6 {[%emt 0:05:47]} 27. hxg6 {[%emt 0:01:44]} hxg6 {[%emt 0:00:02]} 28. Nhf3 {[%emt 0:01:50]} Ng4 {[%emt 0:08:09]} 29. Nxf7 {[%emt 0:01:37]} Rxf7 {[%emt 0:00:07]} 30. Ng5 {[%emt 0:00:05]} Rfe7 {[%emt 0:02:36]} 31. Nxe6+ {[%emt 0:02:30]} Rxe6 {[%emt 0:00:08]} 32. Rxe6 {[%emt 0:00:04]} Rxe6 {[%emt 0:00:03]} 33. Rxe6 {[%emt 0:00:09]} Nf6 {[%emt 0:00:01]} 34. Qb5 {[%emt 0:01:26]} Kf7 {[%emt 0:00:55]} 35. Re2 {[%emt 0:00:46]} Qc8 {[%emt 0:08:59]} 36. Qxa4 {[%emt 0:01:19]} Qg4 {[%emt 0:00:42]} 37. Rg2 {[%emt 0:00:11]} Qf3 {[%emt 0:00:21]} 38. Qc2 {[%emt 0:00:56]} Qe3+ {[%emt 0:03:08]} 39. Qf2 {[%emt 0:00:38]} Qc1+ {[%emt 0:01:28]} 40. Qf1 {[%emt 0:00:14]} Qe3+ {[%emt 0:00:02]} 41. Qf2 {[%emt 0:31:01]} Qc1+ {[%emt 0:33:08]} 42. Qf1 {[%emt 0:00:00]} Qe3+ {[%emt 0:00:00]} 43. Qf2 {[%emt 0:00:00]} 1/2-1/2

[Event "45th FIDE Womens Olympiad 2024"]
[Site "Budapest"]
[Date "2024.09.15"]
[Round "5.3"]
[White "Pieter, Liana"]
[Black "Prasad, Tanvi"]
[Result "0-1"]
[ECO "B00"]
[WhiteElo "1619"]
[BlackElo "1564"]
[PlyCount "102"]
[EventDate "2024.09.05"]
[EventType "team-tourn"]
[EventCountry "HUN"]
[WhiteTeam "Netherlands Antilles"]
[BlackTeam "Fiji"]
[WhiteTeamCountry "AHO"]
[BlackTeamCountry "FIJ"]
[TimeControl "40/5400+30:1800+30"]

1. d4 b6 2. e4 Bb7 3. Bd3 e6 4. Bf4 Nf6 5. Nd2 c5 6. c3 cxd4 7. cxd4 Bb4 8. Ngf3 Nc6 9. Bg5 h6 10. Bxf6 Qxf6 11. e5 Qd8 12. O-O Bxd2 13. Qxd2 O-O 14. Rac1 Ne7 15. Be2 d6 16. Rfd1 Ng6 17. Qb4 Nf4 18. Qd2 dxe5 19. dxe5 Qxd2 20. Rxd2 Rad8 21. Rdc2 Be4 22. Kf1 Bxc2 23. Rxc2 Nxe2 24. Kxe2 Rc8 25. Rd2 Rfd8 26. Nd4 Rd5 27. Nf3 Rxd2+ 28. Kxd2 Rc5 29. b3 g5 30. g4 Kg7 31. a3 a5 32. b4 axb4 33. axb4 Rc4 34. Kd3 Rxb4 35. Kc2 Rxg4 36. Kd3 Rf4 37. Ke3 Rc4 38. Nd4 Rc5 39. f4 b5 40. Nf3 gxf4+ 41. Kxf4 b4 42. Nd2 Rc2 43. Ke3 Kg6 44. Kd3 Rc3+ 45. Ke4 b3 46. Nxb3 Rxb3 47. Kf4 Rb4+ 48. Ke3 Kf5 49. Kd3 Kxe5 50. Kc3 Rd4 51. h4 f5 {0-} 0-1

[Event "45th FIDE Womens Olympiad 2024"]
[Site "Budapest"]
[Date "2024.09.15"]
[Round "5.4"]
[White "Vantika Agrawal"]
[Black "Nurman, Alua"]
[Result "1-0"]
[ECO "E94"]
[WhiteElo "2370"]
[BlackElo "2324"]
[Annotator "TA"]
[PlyCount "101"]
[EventDate "2024.09.05"]
[EventType "team-tourn"]
[EventCountry "HUN"]
[SourceTitle "playchess.com"]
[Source "ChessBase"]
[SourceQuality "1"]
[WhiteTeam "India"]
[BlackTeam "Kazakhstan"]
[WhiteTeamCountry "IND"]
[BlackTeamCountry "KAZ"]
[TimeControl "40/5400+30:1800+30"]

{[%evp 22,101,58,55,53,37,50,45,48,48,42,23,55,46,160,147,342,373,355,394,489,517,490,504,496,464,464,492,417,273,265,242,265,245,627,563,829,601,847,775,866,864,1343,1268,943,895,11649,6025,6111,4133,1794,2262,5318,2043,6045,10720,5173,10667,5089,29971,29971,29973,29972,29973,29957,12841,29976,29975,29975,4133,5202,6223,29978,29979,29983,29983,29984,29984,29985,29986,29986,29987]} 1. d4 {[%emt 0:01:26]} Nf6 {[%emt 0:00:14]} 2. c4 {[%emt 0:00:07]} g6 {[%emt 0:00:05]} 3. Nc3 {[%emt 0:00:05]} Bg7 {[%emt 0:00:08]} 4. e4 {[%emt 0:00:06]} d6 {[%emt 0:00:12]} 5. Be2 {[%emt 0:00:06]} O-O {[%emt 0:00:07]} 6. Nf3 {[%emt 0:00:33]} e5 {[%emt 0:01:04]} 7. O-O {[%emt 0:00:09]} Bg4 {[%emt 0:03:36] 7...h6 is setting a new trend.} 8. d5 {[%emt 0:02:59]} a5 {[%emt 0:00:32]} 9. h3 {[%emt 0:00:37] E94: King's Indian: Classical: 6 Be2 e5 7 0-0: Various Black 7th moves.} Bxf3 {[%emt 0:00:18]} 10. Bxf3 {[%emt 0:00:07]} Na6 {[%emt 0:00:05]} 11. a3 {[%emt 0:09:42]} Nc5 {[%emt 0:04:08]} 12. Be3 {[%emt 0:04:09]} Nfd7 {[%emt 0:12:22]} 13. b4 {[%emt 0:10:00]} axb4 {[%emt 0:02:57]} 14. axb4 {[%emt 0:00:06]} Rxa1 {[%emt 0:00:33]} 15. Qxa1 {[%emt 0:00:07]} Nb3 {[%emt 0:00:06]} 16. Qa7 {[%emt 0:00:19]} Nd4 {[%emt 0:25:01]} 17. Qxb7 $146 {[%emt 0:21:39]} ({Predecessor:} 17. Be2 Qb8 18. Bxd4 exd4 19. Qxb8 Nxb8 20. Nb5 Na6 21. Rd1 Nxb4 22. Nxc7 Na2 23. Ra1 {0-1 Ishkanov,T (2314)-Bregadze,L (2417) Bay Area op Santa Clara 2014 (8)}) 17... Nxf3+ {[%emt 0:24:08]} (17... Nb6 $14) 18. gxf3 $16 {[%emt 0:00:21]} f5 $2 {[%emt 0:00:04] [#]} (18... Nf6 $16 {was necessary.} 19. Nb5 Ne8) 19. Ra1 $1 $18 {[%emt 0:06:19]} Qh4 {[%emt 0:04:04]} 20. Qxc7 {[%emt 0:06:05]} f4 {[%emt 0:00:28]} 21. Bd2 {[%emt 0:00:46]} ({Stronger than} 21. Qxd7 fxe3 22. Ra2 exf2+ (22... Rxf3 23. Nd1 $16) 23. Kf1 Qf4 $11 (23... Rxf3 24. Ra7 $11)) 21... Qxh3 {[%emt 0:01:44]} 22. Ra7 {[%emt 0:02:16]} (22. Qxd6 Rf6 23. Ra8+ Bf8 24. Rxf8+ Rxf8 25. Qe6+ Qxe6 26. dxe6 Nb6 $18) 22... Rf7 {[%emt 0:01:35]} 23. Qxd6 {[%emt 0:08:25]} Nf8 {[%emt 0:00:36]} 24. Rxf7 {[%emt 0:06:14]} Kxf7 {[%emt 0:00:01]} 25. Bxf4 {[%emt 0:11:37]} exf4 {[%emt 0:00:13]} 26. Qxf4+ {[%emt 0:00:07]} Kg8 {[%emt 0:00:04]} 27. Nb5 {[%emt 0:01:03]} Qd7 $2 {[%emt 0:07:01]} (27... Nd7 28. Qg4 Qxg4+ 29. fxg4 Kf8) 28. e5 $18 {[%emt 0:02:25]} Qe7 {[%emt 0:01:39]} 29. e6 {[%emt 0:00:20]} Nxe6 {[%emt 0:01:23]} 30. dxe6 {[%emt 0:00:19]} Qxe6 {[%emt 0:00:01]} 31. c5 {[%emt 0:01:26]} Be5 {[%emt 0:04:03]} 32. Qe4 {[%emt 0:01:59]} Qf6 {[%emt 0:00:17]} 33. Nd6 {[%emt 0:02:30]} Bxd6 {[%emt 0:02:14]} 34. Qd5+ {[%emt 0:00:09]} Qf7 {[%emt 0:00:18]} 35. Qxd6 {[%emt 0:02:31]} Qxf3 {[%emt 0:00:02]} 36. c6 {[%emt 0:00:41]} Qg4+ {[%emt 0:00:45]} 37. Kh2 {[%emt 0:00:26]} (37. Kf1 $142 Qc4+ 38. Ke1 Qc3+ 39. Ke2) 37... Qh4+ {[%emt 0:01:20] [#]} 38. Kg2 $1 {[%emt 0:00:34]} Qg4+ {[%emt 0:00:40]} 39. Kf1 {[%emt 0:00:34]} Qc4+ {[%emt 0:00:13]} 40. Ke1 {[%emt 0:00:18]} Qc1+ {[%emt 0:04:42]} 41. Ke2 {[%emt 0:30:09]} Qc2+ {[%emt 0:05:24]} 42. Ke3 {[%emt 0:00:00]} Qc3+ {[%emt 0:07:00]} 43. Ke4 {[%emt 0:00:00]} Qc4+ {[%emt 0:06:31]} 44. Kf3 {[%emt 0:00:00]} Qf7+ {[%emt 0:07:10]} 45. Kg2 {[%emt 0:00:00]} (45. Kg3 $142 Qb3+ 46. Kg2 Qc4 47. Qd8+ Kg7 48. Qd7+ Kh6 49. c7 Qe4+ 50. Kg3 Qe5+ 51. Kf3 Qf6+ 52. Ke2 (52. Ke4 Qh4+ 53. Kd3 Qxb4 $18)) 45... Qf5 $18 {[%emt 0:00:18]} 46. c7 {[%emt 0:00:00]} Kf7 {[%emt 0:01:30]} 47. b5 {[%emt 0:00:00]} h5 {[%emt 0:01:07]} 48. Qd4 {[%emt 0:00:00]} Qe6 {[%emt 0:03:14]} 49. b6 {[%emt 0:00:00]} g5 {[%emt 0:00:57]} 50. Qc3 {[%emt 0:00:00]} Qc8 {[%emt 0:01:00]} 51. b7 {[%emt 0:00:00]} 1-0